[Event "Titled Tuesday Blitz May 17 Late 2022"]
[White "Tanenbaum, Zachary"]
[Black "Yuan, Qingyu"]
[WhiteFideId "2060850"]
[BlackFideId "8609772"]
[WhiteElo "2168"]
[BlackElo "2359"]
[Result "1-0"]
[Round "11"]
[TimeControl "180+1"]
[Date "2022.05.17"]
[WhiteClock "0:00:09"]
[BlackClock "0:00:04"]

1. e4 {[%clk 0:02:59]}  c6 {[%clk 0:03:00]} 2. d4 {[%clk 0:03:00]}  d5 {[%clk 0:03:00]} 3. exd5 {[%clk 0:03:00]}  cxd5 {[%clk 0:03:01]} 4. Bd3 {[%clk 0:03:01]}  Nc6 {[%clk 0:03:01]} 5. c3 {[%clk 0:03:01]}  Nf6 {[%clk 0:03:02]} 6. Bf4 {[%clk 0:03:01]}  Bg4 {[%clk 0:03:02]} 7. Qb3 {[%clk 0:03:01]}  Qd7 {[%clk 0:03:01]} 8. Nd2 {[%clk 0:03:02]}  e6 {[%clk 0:03:01]} 9. Ngf3 {[%clk 0:03:02]}  Bd6 {[%clk 0:02:59]} 10. Bxd6 {[%clk 0:03:02]}  Qxd6 {[%clk 0:03:00]} 11. O-O {[%clk 0:03:03]}  O-O {[%clk 0:03:00]} 12. Rfe1 {[%clk 0:03:03]}  Bxf3 {[%clk 0:02:59]} 13. Nxf3 {[%clk 0:03:04]}  Qc7 {[%clk 0:03:00]} 14. Qc2 {[%clk 0:03:01]}  Rfc8 {[%clk 0:03:00]} 15. Qd2 {[%clk 0:03:00]}  a6 {[%clk 0:02:54]} 16. a4 {[%clk 0:03:00]}  Na5 {[%clk 0:02:42]} 17. Qc2 {[%clk 0:02:42]}  g6 {[%clk 0:02:36]} 18. Ne5 {[%clk 0:02:34]}  Nc6 {[%clk 0:02:36]} 19. f4 {[%clk 0:02:29]}  Nxd4 {[%clk 0:02:33]} 20. Qf2 {[%clk 0:02:27]}  Nb3 {[%clk 0:02:23]} 21. Rad1 {[%clk 0:02:26]}  Qc5 {[%clk 0:02:20]} 22. Re3 {[%clk 0:02:25]}  b5 {[%clk 0:02:15]} 23. axb5 {[%clk 0:02:12]}  axb5 {[%clk 0:02:16]} 24. Rde1 {[%clk 0:01:45]}  Ra2 {[%clk 0:02:00]} 25. g4 {[%clk 0:01:37]}  d4 {[%clk 0:01:51]} 26. cxd4 {[%clk 0:01:35]}  Qxd4 {[%clk 0:01:52]} 27. Bxg6 {[%clk 0:01:25]}  hxg6 {[%clk 0:00:58]} 28. Rxb3 {[%clk 0:01:25]}  Qd5 {[%clk 0:00:43]} 29. Rd3 {[%clk 0:00:49]}  Qc5 {[%clk 0:00:25]} 30. Rd8+ {[%clk 0:00:43]}  Kg7 {[%clk 0:00:24]} 31. Rxc8 {[%clk 0:00:36]}  Qxc8 {[%clk 0:00:24]} 32. Qd4 {[%clk 0:00:36]}  Ra4 {[%clk 0:00:20]} 33. b4 {[%clk 0:00:34]}  Kg8 {[%clk 0:00:16]} 34. Nxg6 {[%clk 0:00:30]}  fxg6 {[%clk 0:00:04]} 35. Qxf6 {[%clk 0:00:31]}  Rxb4 {[%clk 0:00:03]} 36. Qxg6+ {[%clk 0:00:30]}  Kf8 {[%clk 0:00:03]} 37. Qf6+ {[%clk 0:00:30]}  Kg8 {[%clk 0:00:03]} 38. Qxe6+ {[%clk 0:00:09]}  Qxe6 {[%clk 0:00:02]} 39. Rxe6 {[%clk 0:00:10]}  Rxf4 {[%clk 0:00:01]} 40. h3 {[%clk 0:00:10]}  Rc4 {[%clk 0:00:01]} 41. Rb6 {[%clk 0:00:10]}  Rb4 {[%clk 0:00:01]} 42. Rb7 {[%clk 0:00:10]}  Rb3 {[%clk 0:00:01]} 43. Kg2 {[%clk 0:00:10]}  Kh8 {[%clk 0:00:02]} 44. h4 {[%clk 0:00:10]}  Kg8 {[%clk 0:00:02]} 45. g5 {[%clk 0:00:10]}  Kh8 {[%clk 0:00:03]} 46. h5 {[%clk 0:00:10]}  Kg8 {[%clk 0:00:03]} 47. h6 {[%clk 0:00:10]}  Rb4 {[%clk 0:00:02]} 48. Kg3 {[%clk 0:00:10]}  Rb1 {[%clk 0:00:01]} 49. Kg4 {[%clk 0:00:09]}  Rg1+ {[%clk 0:00:02]} 50. Kh5 {[%clk 0:00:08]}  b4 {[%clk 0:00:01]} 51. Kg6 {[%clk 0:00:06]}  Kf8 {[%clk 0:00:01]} 52. Rb8+ {[%clk 0:00:06]}  Ke7 {[%clk 0:00:01]} 53. h7 {[%clk 0:00:07]}  Rh1 {[%clk 0:00:02]} 54. h8=Q {[%clk 0:00:07]}  Rxh8 {[%clk 0:00:02]} 55. Rxh8 {[%clk 0:00:08]}  Kd6 {[%clk 0:00:03]} 56. Rb8 {[%clk 0:00:08]}  Kc7 {[%clk 0:00:04]} 57. Rxb4 {[%clk 0:00:08]}  Kc6 {[%clk 0:00:04]} 58. Rf4 {[%clk 0:00:09]} 1-0


[Site "https://www.chess.com"]

[Event "Titled Tuesday Blitz May 17 Late 2022"]
[White "Toncheva, Nadya"]
[Black "Janaszak, Dawid"]
[WhiteFideId "2924056"]
[BlackFideId "1119206"]
[WhiteElo "1888"]
[BlackElo "2199"]
[Result "0-1"]
[Round "11"]
[TimeControl "180+1"]
[Date "2022.05.17"]
[WhiteClock "0:00:01"]
[BlackClock "0:00:03"]

1. e4 {[%clk 0:03:00]}  c5 {[%clk 0:02:59]} 2. Nf3 {[%clk 0:03:00]}  Nc6 {[%clk 0:02:58]} 3. d4 {[%clk 0:03:00]}  cxd4 {[%clk 0:02:59]} 4. Nxd4 {[%clk 0:03:00]}  g6 {[%clk 0:02:58]} 5. c4 {[%clk 0:03:00]}  e5 {[%clk 0:02:58]} 6. Nc2 {[%clk 0:02:44]}  Bg7 {[%clk 0:02:58]} 7. Nc3 {[%clk 0:02:32]}  Nf6 {[%clk 0:02:53]} 8. Be2 {[%clk 0:02:30]}  O-O {[%clk 0:02:52]} 9. O-O {[%clk 0:02:29]}  d6 {[%clk 0:02:50]} 10. Be3 {[%clk 0:02:27]}  Be6 {[%clk 0:02:46]} 11. b3 {[%clk 0:02:27]}  Qa5 {[%clk 0:02:39]} 12. Qd2 {[%clk 0:02:26]}  Rfd8 {[%clk 0:02:37]} 13. a3 {[%clk 0:02:19]}  Nd4 {[%clk 0:02:25]} 14. b4 {[%clk 0:01:49]}  Nxe2+ {[%clk 0:02:24]} 15. Qxe2 {[%clk 0:01:49]}  Qc7 {[%clk 0:02:23]} 16. Nd5 {[%clk 0:01:17]}  Bxd5 {[%clk 0:02:20]} 17. cxd5 {[%clk 0:01:04]}  Nxe4 {[%clk 0:02:15]} 18. Rac1 {[%clk 0:00:54]}  Qd7 {[%clk 0:02:01]} 19. f4 {[%clk 0:00:50]}  Nc3 {[%clk 0:01:58]} 20. Qf2 {[%clk 0:00:43]}  Nxd5 {[%clk 0:01:53]} 21. Bxa7 {[%clk 0:00:40]}  exf4 {[%clk 0:01:45]} 22. Bd4 {[%clk 0:00:35]}  Be5 {[%clk 0:01:40]} 23. Rce1 {[%clk 0:00:33]}  Qf5 {[%clk 0:01:35]} 24. Qf3 {[%clk 0:00:31]}  Qxc2 {[%clk 0:01:31]} 25. Qxd5 {[%clk 0:00:29]}  Bxd4+ {[%clk 0:00:48]} 26. Qxd4 {[%clk 0:00:28]}  Rxa3 {[%clk 0:00:39]} 27. Qxf4 {[%clk 0:00:20]}  Rf8 {[%clk 0:00:30]} 28. Re7 {[%clk 0:00:16]}  Qb3 {[%clk 0:00:22]} 29. Qxd6 {[%clk 0:00:13]}  Ra2 {[%clk 0:00:16]} 30. Rxb7 {[%clk 0:00:07]}  Qe3+ {[%clk 0:00:16]} 31. Kh1 {[%clk 0:00:07]}  Raa8 {[%clk 0:00:12]} 32. Re7 {[%clk 0:00:05]}  Qa3 {[%clk 0:00:06]} 33. Qf4 {[%clk 0:00:03]}  Qa2 {[%clk 0:00:06]} 34. h3 {[%clk 0:00:04]}  Rad8 {[%clk 0:00:05]} 35. b5 {[%clk 0:00:04]}  Rd2 {[%clk 0:00:05]} 36. Rg1 {[%clk 0:00:04]}  Rf2 {[%clk 0:00:05]} 37. Qc7 {[%clk 0:00:04]}  Rc2 {[%clk 0:00:04]} 38. Qb7 {[%clk 0:00:04]}  Rb2 {[%clk 0:00:03]} 39. b6 {[%clk 0:00:04]}  Qb3 {[%clk 0:00:04]} 40. Rf1 {[%clk 0:00:03]}  Qxb6 {[%clk 0:00:04]} 41. Qd5 {[%clk 0:00:01]}  Qb3 {[%clk 0:00:03]} 0-1


[Site "https://www.chess.com"]